bitfinex/quotes_ETHUSD_20240610
["timestamp","ask_amount","ask_price","bid_price","bid_amount"]
[1718006403099,8.2166,3649.3,3647.8,1.37066]
[1718006403100,3.0,3649.2,3647.8,1.37066]
[1718006403298,8.2166,3649.1,3647.9,1.39285466]
[1718006404971,1.37029,3648.9,3647.9,1.39285466]
[1718006405230,8.2166,3648.8,3647.7,1.37071]
[1718006405435,8.2166,3648.8,3647.3,0.28426012]
[1718006405436,4.37035,3648.7,3647.3,0.28426012]
[1718006405637,8.2166,3648.6,3647.4,1.82837067]
[1718006405823,3.0,3648.5,3647.4,1.36485466]
[1718006406010,8.2166,3648.4,3647.4,1.36485466]
[1718006406210,8.2166,3648.4,3647.5,1.37079]
[1718006406520,8.2166,3648.4,3647.5,2.76364466]
[1718006407103,8.2166,3648.4,3647.5,1.37079]
[1718006407412,8.2166,3648.4,3647.7,1.37071]
[1718006407613,8.2166,3648.4,3647.9,1.37063]
[1718006407813,8.2166,3648.4,3648.1,1.37056]
[1718006408128,8.2166,3648.4,3648.3,1.3705]
[1718006408439,8.2166,3648.4,3648.3,5.36435466]
[1718006408644,8.2166,3648.4,3648.3,9.61510013]
[1718006408848,8.2166,3648.4,3648.3,10.98560013]
[1718006409008,6.53290822,3648.4,3648.3,10.98560013]
[1718006409379,4.06200582,3648.4,3648.3,10.98560013]
[1718006409544,0.006,3650.1,3649.8,1.36993]
[1718006409721,7.28,3650.8,3649.8,1.36993]
[1718006410044,7.28,3650.8,3649.9,1.39285466]
[1718006410248,7.286,3651.5,3650.4,1.36969]
[1718006410541,8.1904,3650.7,3650.4,2.76254466]
[1718006411162,8.1904,3650.7,3650.6,1.36963]
[1718006411307,8.1904,3650.7,3650.6,2.76248466]
[1718006411641,8.1904,3650.7,3650.6,3.03873313]
[1718006412350,8.1904,3650.7,3650.6,4.40836313]
[1718006412511,8.1904,3650.7,3650.6,3.03873313]
[1718006412708,8.1904,3650.7,3650.6,4.40836313]
[1718006412943,8.1904,3650.7,3650.6,7.95836313]
[1718006413535,0.006,3652.4,3652.3,1.369]
[1718006413848,2.4084,3653.4,3651.8,1.36916]
[1718006413849,1.36867,3653.2,3651.8,1.36916]
[1718006414014,1.36867,3653.2,3651.8,2.76201466]
[1718006414215,1.36867,3653.2,3651.9,1.39285466]
[1718006414414,8.2134,3653.1,3652.1,1.36906]
[1718006414837,1.62566883,3652.7,3651.0,1.36946]
[1718006415037,8.2134,3652.6,3651.6,1.36924]
[1718006415356,8.2134,3652.6,3651.0,0.136946]
[1718006415357,8.2134,3652.6,3651.9,1.36913]
[1718006415519,8.2134,3652.6,3652.3,1.36898]
[1718006415719,8.2134,3652.6,3652.5,1.36892]
[1718006415921,8.2134,3652.6,3652.5,2.76177466]
[1718006417551,8.24183253,3652.6,3652.5,2.76177466]
[1718006417852,8.24183253,3652.6,3652.5,3.58795213]
[1718006418569,8.2134,3652.6,3652.5,4.95687213]
[1718006418793,8.2134,3652.6,3652.5,8.70687213]
[1718006419052,0.006,3653.8,3652.5,8.70687213]
[1718006419053,0.006,3653.8,3653.7,1.36847]
[1718006419245,0.006,3654.9,3653.7,2.76132466]
[1718006419445,0.006,3655.1,3654.1,1.36831]
[1718006419644,0.006,3655.2,3654.2,1.39285466]
[1718006419818,0.02916773,3655.1,3654.1,1.36831]
[1718006420218,8.2088,3655.0,3654.1,1.36831]
[1718006420452,0.02913301,3654.9,3654.1,1.36831]
[1718006420687,8.2088,3654.8,3654.1,1.36831]
[1718006421074,0.02909829,3654.7,3654.1,1.36831]
[1718006421271,8.2088,3654.6,3654.1,1.36831]
[1718006421588,0.02906356,3654.5,3654.1,1.36831]
[1718006421752,8.2088,3654.4,3654.1,1.36831]
[1718006421960,8.2088,3654.4,3653.1,1.36867]
[1718006422139,8.2088,3654.4,3652.6,1.36887]
[1718006422140,2.3318,3654.2,3652.6,1.36887]
[1718006422340,8.2088,3654.1,3652.7,1.52974166]
[1718006422683,8.23779409,3654.1,3652.9,1.39285466]
[1718006423284,8.23779409,3654.1,3653.0,1.3687]
[1718006423443,8.23779409,3654.1,3653.2,1.36864]
[1718006423779,8.23779409,3654.1,3653.3,1.39285466]
[1718006423962,9.60612409,3654.1,3652.7,1.36883]
[1718006424175,8.23779409,3654.1,3652.9,1.36874]
[1718006424492,8.23779409,3654.1,3653.2,1.36864]
[1718006424649,8.23779409,3654.1,3653.4,1.36858]
[1718006424851,8.23779409,3654.1,3653.3,1.39285466]
[1718006424852,8.23779409,3654.1,3653.6,1.3685]
[1718006425062,8.23779409,3654.1,3653.8,1.36843]
[1718006425250,8.23779409,3654.1,3652.4,1.36893]
[1718006425251,8.23779409,3654.1,3654.0,1.36836]
[1718006425583,8.23779409,3654.1,3654.0,2.76121466]
[1718006425753,8.23779409,3654.1,3653.0,1.36873]
[1718006425944,8.23779409,3654.1,3653.1,1.39285466]
[1718006426275,0.02897672,3654.0,3653.1,1.39285466]
[1718006426486,8.2088,3653.9,3653.8,1.36841]
[1718006426638,8.2088,3653.9,3653.8,2.76126466]
[1718006426838,8.23775935,3653.9,3653.8,2.76126466]
[1718006427043,8.23775935,3653.9,3653.3,1.36859]
[1718006427355,8.2088,3653.9,3653.3,1.36859]
[1718006427758,0.02894833,3653.8,3653.3,1.36859]
[1718006427954,0.02894833,3653.8,3653.4,1.39285466]
[1718006428576,8.2088,3653.7,3653.5,1.36854]
[1718006428876,8.2088,3653.7,3653.6,1.39285466]
[1718006430870,8.2088,3653.7,3653.6,1.94285466]
[1718006431582,8.2088,3653.7,3653.6,2.27399413]
[1718006435000,8.2088,3653.7,3653.6,4.86199413]
[1718006435458,8.2088,3653.7,3653.6,7.86199413]
[1718006435959,8.2088,3653.7,3653.6,42.86199413]
[1718006436690,8.2088,3653.7,3653.6,40.27399413]
[1718006436871,8.2088,3653.7,3653.6,42.86199413]
[1718006438098,8.2088,3653.7,3653.6,7.86199413]
[1718006438597,8.2088,3653.7,3653.6,42.86199413]
[1718006439594,8.2088,3653.7,3653.6,7.86199413]
[1718006439896,8.2088,3653.7,3653.6,7.53085466]
[1718006440396,8.2088,3653.7,3653.6,6.98085466]
[1718006440703,8.2088,3653.7,3653.6,3.98085466]
[1718006441298,8.2088,3653.7,3653.6,1.39285466]
[1718006442622,8.2088,3653.7,3653.6,1.94285466]
[1718006442758,8.2088,3653.7,3653.6,2.41085213]
[1718006447881,8.2088,3653.7,3653.6,2.36141933]
[1718006451378,0.006,3655.5,3655.2,1.3679]
[1718006451579,7.28,3656.6,3654.3,1.36822]
[1718006451580,1.62755681,3656.0,3655.4,1.36783]
[1718006451912,1.62755681,3656.1,3655.6,1.36775]
[1718006452071,1.62755681,3656.1,3655.7,1.39285466]
[1718006452271,1.3675,3656.3,3655.7,1.39285466]
[1718006452272,1.62755681,3656.3,3655.7,1.39285466]
[1718006452770,1.62755681,3656.3,3655.4,1.36783]
[1718006452771,1.36759,3656.1,3655.4,1.36783]
[1718006452974,1.36769,3655.8,3655.0,1.36795]
[1718006453171,1.36769,3655.8,3655.0,2.76080466]
[1718006453483,1.62755681,3655.5,3655.0,1.39285466]
[1718006453697,3.58646208,3655.6,3655.0,1.39285466]
[1718006453894,2.99531681,3655.6,3655.0,1.39285466]
[1718006454192,1.62755681,3655.5,3655.0,1.39285466]
[1718006454394,8.2074,3655.4,3655.0,1.39285466]
[1718006454698,8.2074,3655.4,3654.3,1.36822]
[1718006454699,2.91401292,3655.3,3654.3,1.36822]
[1718006454906,8.2074,3655.2,3654.5,1.36815]
[1718006455115,8.2074,3655.2,3654.6,1.39285466]
[1718006456198,8.2074,3655.2,3654.7,1.36807]
[1718006456388,8.2074,3655.2,3654.9,1.36801]
[1718006456603,8.2074,3655.2,3655.0,1.39285466]
[1718006457684,8.2074,3655.2,3655.1,1.36795]
[1718006457888,8.2074,3655.2,3655.1,2.73343516]
[1718006458292,8.2074,3655.2,3655.1,3.00677868]
[1718006460320,8.2074,3655.2,3655.1,1.39285466]
[1718006460487,8.2074,3655.2,3654.3,1.36822]
[1718006460682,0.0252407,3655.1,3654.4,1.39285466]
[1718006460919,12.70040188,3655.0,3654.4,1.39285466]
[1718006461219,2.21880188,3654.9,3654.4,1.39285466]
[1718006461420,8.2074,3654.8,3654.4,1.39285466]
[1718006461951,8.2074,3654.8,3653.6,0.46799747]
[1718006461952,0.61644992,3654.7,3654.1,1.36831]
[1718006462125,8.2074,3654.6,3654.2,1.39285466]
[1718006462625,0.0253928,3654.5,3654.2,1.39285466]
[1718006462924,8.2074,3654.4,3654.3,1.36825]
[1718006463119,8.2074,3654.4,3654.3,2.76110466]
[1718006463329,8.23277543,3654.4,3654.3,2.76110466]
[1718006465197,8.23277543,3654.4,3654.3,1.39285466]
[1718006466921,8.23277543,3654.4,3654.3,1.66896613]
[1718006467999,8.2074,3654.4,3654.3,1.66896613]
[1718006468328,8.23279375,3654.4,3654.3,2.21896613]
[1718006468742,8.2074,3654.4,3654.3,2.21896613]
[1718006470538,8.2074,3654.4,3654.3,5.21896613]
[1718006471744,8.2074,3654.4,3654.3,5.19096613]
[1718006472237,8.2074,3654.4,3654.3,40.19096613]
[1718006474004,8.2074,3654.4,3654.3,1.64096613]
[1718006475418,8.2074,3654.4,3654.3,2.19096613]
[1718006475820,8.2074,3654.4,3654.3,1.91485466]
[1718006476230,8.2074,3654.4,3654.3,1.33748516]
[1718006476806,8.23245707,3654.4,3654.3,1.33748516]
[1718006480442,8.23245707,3654.4,3654.3,1.88748516]
[1718006482843,8.23245707,3654.4,3654.3,1.33748516]
[1718006484323,8.23245707,3654.4,3654.3,1.86685968]
[1718006484526,8.23245707,3654.4,3654.3,2.41685968]
[1718006484762,8.2074,3654.4,3654.3,2.41685968]
[1718006485124,8.23203111,3654.4,3654.3,2.41685968]
[1718006485426,8.23203111,3654.4,3654.3,2.41989393]
[1718006486430,8.23203111,3654.4,3654.3,5.41989393]
[1718006486624,8.2074,3654.4,3654.3,6.25893771]
[1718006487036,7.79e-06,3654.4,3654.3,44.74543771]
[1718006487261,0.55845693,3656.1,3655.8,1.36765]
[1718006487431,2.89945693,3656.2,3655.9,1.39285466]
[1718006488035,2.341,3656.2,3655.9,1.39285466]
[1718006488564,2.341,3656.2,3656.0,1.36761]
[1718006488746,2.341,3656.2,3656.1,1.39285466]
[1718006489260,2.38080693,3656.2,3656.1,1.39285466]
[1718006491461,0.03980693,3656.2,3656.1,1.66890113]
[1718006491987,2.4144,3656.8,3656.1,1.66890113]
[1718006492160,0.55845693,3657.1,3656.1,1.66890113]
[1718006492161,0.55845693,3657.1,3656.6,1.36737]
[1718006492328,0.55845693,3657.2,3656.8,1.3673]
[1718006492662,2.447,3657.3,3656.9,1.39285466]
[1718006492854,8.2032,3657.2,3657.0,1.36723]
[1718006493034,8.2032,3657.2,3657.1,1.39285466]
[1718006494628,8.2032,3657.2,3657.1,1.35991306]
[1718006496781,8.2032,3657.2,3657.1,1.35991306]
[1718006498293,8.2032,3657.2,3657.1,1.63262737]
[1718006498594,8.2032,3657.2,3657.1,2.18262737]
[1718006500560,8.2032,3657.2,3657.1,5.18262737]
[1718006502799,8.2032,3657.2,3657.1,5.93262737]
[1718006503186,8.3e-07,3657.2,3657.1,5.93262737]
[1718006503378,8.3e-07,3657.2,3657.1,6.68262737]
[1718006503591,0.1235634,3658.1,3658.0,1.36686]
[1718006503793,0.1235634,3658.1,3658.0,3.28645941]
[1718006504092,0.1235634,3658.1,3658.0,3.61510535]
[1718006505306,0.1235634,3658.1,3658.0,7.09882535]
[1718006505515,0.1235634,3658.1,3658.0,4.98196535]
[1718006505672,0.1235634,3658.1,3658.0,7.98196535]
[1718006506017,0.1235634,3658.1,3658.0,42.98196535]
[1718006507305,0.1235634,3658.1,3658.0,38.61510535]
[1718006507814,0.1235634,3658.1,3658.0,39.98196535]
[1718006508173,0.1235634,3658.1,3658.0,42.98196535]
[1718006508938,0.1235634,3658.1,3658.0,45.66796535]
[1718006509230,0.1235634,3658.1,3658.0,47.03482535]
[1718006510090,0.1235634,3658.1,3658.0,43.55110535]
[1718006510531,0.1235634,3658.1,3658.0,1.69824535]
[1718006510690,0.1235634,3658.1,3658.0,1.36959941]
[1718006511539,0.1235634,3658.1,3657.6,6.00298]
[1718006511540,2.5959634,3658.1,3657.6,2.7]
[1718006511748,2.5959634,3658.1,3657.3,7.28]
[1718006511749,2.62048439,3658.1,3657.7,1.37258881]
[1718006512331,0.14808439,3658.1,3658.0,1.37184143]
[1718006512691,0.14808439,3658.1,3658.0,1.50902557]
[1718006512926,0.1235634,3658.1,3658.0,1.50902557]
[1718006515068,0.1235634,3658.1,3658.0,2.05902557]
[1718006515374,0.1235634,3658.1,3658.0,1.50902557]
[1718006515756,0.1235634,3658.1,3658.0,2.05902557]
[1718006516191,0.1235634,3658.1,3658.0,37.05902557]
[1718006518564,0.1235634,3658.1,3658.0,2.05902557]
[1718006520882,0.1235634,3658.1,3658.0,1.50902557]
[1718006521084,0.1235634,3658.1,3658.0,1.37184143]
[1718006522136,8.3246634,3658.1,3658.0,1.37184143]
[1718006522292,8.3246634,3658.1,3658.0,1.29510126]
[1718006524892,5.3246634,3658.1,3658.0,1.29510126]
[1718006527274,7.7444634,3658.1,3658.0,1.29510126]
[1718006527469,1.36688,3658.0,3657.3,7.28]
[1718006527785,1.36688,3658.0,3657.4,1.29883837]
[1718006527965,5.3246634,3657.9,3657.4,1.29883837]
[1718006528618,1.36695,3657.8,3657.4,1.29883837]
[1718006528908,1.36701,3657.6,3657.4,1.29883837]
[1718006529115,5.3246634,3657.5,3657.4,1.29883837]
[1718006530084,1.36712,3657.4,3656.6,7.28]
[1718006530284,5.3246634,3657.3,3656.7,2.06408903]
[1718006530599,5.3246634,3657.3,3656.7,1.30780953]
[1718006532413,5.3246634,3657.3,3656.9,1.30855725]
[1718006532708,5.3246634,3657.3,3657.2,1.30706182]
[1718006532881,5.2966634,3657.3,3657.2,1.85706182]
[1718006533614,5.2966634,3657.3,3657.2,36.85706182]
[1718006534989,5.2966634,3657.3,3657.2,1.30706182]
[1718006535190,5.2966634,3657.3,3657.2,1.574487]
[1718006536244,5.2966634,3657.3,3657.2,1.30706182]
[1718006539209,5.2966634,3657.3,3657.2,1.85706182]
[1718006540687,5.2966634,3657.3,3657.2,1.30706182]
[1718006541107,5.2966634,3657.3,3657.2,1.85706182]
[1718006542584,5.2966634,3657.3,3657.2,36.85706182]
[1718006542790,5.2966634,3657.3,3657.2,39.50736727]
[1718006544999,5.2966634,3657.3,3657.2,4.50736727]
[1718006545229,5.2966634,3657.3,3657.2,1.85706182]
[1718006545412,5.2966634,3657.3,3657.2,1.30706182]
[1718006559559,5.2966634,3657.3,3657.2,1.85706182]
[1718006560854,5.2966634,3657.3,3657.2,36.85706182]
[1718006562720,5.2966634,3657.3,3657.2,38.22422182]
[1718006562925,5.2966634,3657.3,3657.2,40.87452727]
[1718006563155,5.2966634,3657.3,3657.2,43.87452727]
[1718006563946,5.2966634,3657.3,3657.2,8.87452727]
[1718006564155,5.2966634,3657.3,3657.2,6.22422182]
[1718006564354,5.2966634,3657.3,3657.2,42.59138182]
[1718006565323,0.55845693,3658.8,3658.3,1.36672]
[1718006565546,0.55845693,3658.9,3658.4,1.28538715]
[1718006565751,0.55845693,3658.9,3658.4,1.55059786]
[1718006567239,3.05775693,3659.0,3658.4,1.55059786]
[1718006567439,3.05775693,3659.0,3658.5,1.36667]
[1718006567638,3.05775693,3659.0,3658.6,1.2823989]
[1718006568261,0.55845693,3659.0,3658.6,1.2823989]
[1718006568434,0.55845693,3659.1,3658.6,1.2823989]
[1718006568955,8.1993,3659.0,3658.6,1.2823989]
[1718006572567,8.19838105,3659.0,3658.6,1.2823989]
[1718006573560,8.19838105,3659.0,3658.7,1.36659]
[1718006573868,8.19838105,3659.0,3658.8,1.2809049]
[1718006578000,8.19838105,3659.0,3658.9,1.36653]
[1718006578298,8.19838105,3659.0,3658.9,2.64594097]
[1718006581272,8.19838105,3659.0,3658.9,3.19594097]
[1718006581467,8.19838105,3659.0,3658.9,3.54467786]
[1718006581670,8.19838105,3659.0,3658.9,5.48267786]
[1718006586101,8.19838105,3659.0,3658.9,6.84920786]
[1718006586472,8.19838105,3659.0,3658.9,7.59920786]
[1718006586673,8.19838105,3659.0,3658.9,10.59920786]
[1718006587109,8.19838105,3659.0,3658.9,9.84920786]
[1718006592184,8.0175201,3659.0,3658.9,9.84920786]
[1718006592375,6.94232316,3659.0,3658.9,10.68632689]
[1718006594176,6.3599495,3659.0,3658.9,10.68632689]
[1718006594812,5.14104949,3659.0,3658.9,10.68632689]
[1718006595119,9.49e-06,3659.0,3658.9,10.68632689]
[1718006595482,2.3591,3660.8,3660.6,1.36588]
[1718006595680,2.3531,3660.8,3660.6,1.36588]
[1718006595900,2.4019,3661.6,3660.6,0.136588]
[1718006596091,2.4019,3661.6,3660.8,1.36578]
[1718006599391,2.4019,3661.6,3661.1,1.36568]
[1718006600094,0.1235634,3661.8,3661.1,1.36568]
[1718006600297,0.1235634,3661.8,3660.5,3.0]
[1718006600501,0.1235634,3661.8,3660.6,1.714593]
[1718006601303,0.1235634,3661.8,3660.9,1.36576]
[1718006603720,8.1937,3661.7,3660.9,1.36576]
[1718006604897,8.1937,3661.7,3661.2,1.36567]
[1718006607121,8.1937,3661.7,3661.5,1.36555]
[1718006607427,8.1937,3661.7,3660.6,1.714593]
[1718006607428,8.1937,3661.7,3660.9,7.28]
[1718006607636,8.1937,3661.7,3661.0,1.278]
[1718006607860,8.1937,3661.7,3661.5,1.36555]
[1718006609258,8.1937,3661.7,3661.1,1.36567]
[1718006609791,8.1937,3661.7,3661.4,1.36558]
[1718006621143,8.1937,3661.7,3661.6,1.36552]
[1718006621420,8.1937,3661.7,3661.6,3.52720621]
[1718006621616,8.1937,3661.7,3661.6,6.472592]
[1718006623517,8.1937,3661.7,3661.6,41.472592]
[1718006629704,8.1937,3661.7,3661.6,43.588112]
[1718006630235,8.1937,3661.7,3661.6,42.838112]
[1718006630536,8.1937,3661.7,3661.6,43.588112]
[1718006631093,8.1937,3661.7,3661.6,42.838112]
[1718006631333,8.1937,3661.7,3661.6,43.588112]
[1718006633324,8.1937,3661.7,3661.6,42.838112]
[1718006634908,8.1937,3661.7,3661.6,43.588112]
[1718006635496,8.1937,3661.7,3661.6,42.288112]
[1718006637207,8.1937,3661.7,3661.6,44.226112]
[1718006637391,8.1937,3661.7,3661.6,44.976112]
[1718006637596,8.1937,3661.7,3661.6,45.526112]
[1718006639040,3.4e-06,3661.8,3661.6,45.526112]
[1718006639245,3.4e-06,3661.8,3661.7,6.20030545]
[1718006639759,3.4e-06,3661.8,3661.7,7.80349197]
[1718006640043,3.4e-06,3661.8,3661.7,43.08788748]
[1718006640194,3.4e-06,3661.8,3661.7,42.33788748]
[1718006640396,3.4e-06,3661.8,3661.7,41.20030545]
[1718006640698,3.4e-06,3661.8,3661.7,42.62223173]
[1718006640913,3.4e-06,3661.8,3661.7,41.20030545]
[1718006641130,3.4e-06,3661.8,3661.7,43.08948111]
[1718006641360,3.4e-06,3661.8,3661.7,44.74298908]
[1718006641503,3.4e-06,3661.8,3661.7,44.74298253]
[1718006641831,3.4e-06,3661.8,3661.7,45.49298253]
[1718006642032,3.4e-06,3661.8,3661.7,44.74298253]
[1718006642232,3.4e-06,3661.8,3661.7,45.49298253]
[1718006642462,3.4e-06,3661.8,3661.7,44.74298253]
[1718006642746,3.4e-06,3661.8,3661.7,45.02748111]
[1718006643734,3.4e-06,3661.8,3661.7,43.88830545]
[1718006643940,3.4e-06,3661.8,3661.7,45.02748111]
[1718006644235,3.4e-06,3661.8,3661.7,43.88830545]
[1718006644736,3.4e-06,3661.8,3661.7,57.47911611]
[1718006644935,3.4e-06,3661.8,3661.7,53.33994045]
[1718006645233,3.4e-06,3661.8,3661.7,54.47889021]
[1718006645442,3.4e-06,3661.8,3661.7,53.33994045]
[1718006645605,3.4e-06,3661.8,3661.7,54.76440473]
[1718006646217,3.4e-06,3661.8,3661.7,55.51440473]
[1718006646425,3.4e-06,3661.8,3661.7,54.76440473]
[1718006646978,2.334,3663.3,3662.6,1.36515]
[1718006647124,2.334,3663.3,3662.7,0.55]
[1718006647318,2.334,3663.3,3662.7,3.686515]
[1718006647746,2.495,3664.2,3664.1,1.36459]
[1718006648061,2.52063782,3664.2,3664.1,1.91459]
[1718006648266,2.495,3664.2,3664.1,2.106049]
[1718006648422,2.495,3664.2,3664.1,37.106049]
[1718006648623,0.006,3665.2,3664.8,1.36432]
[1718006648873,0.02587245,3665.1,3664.8,1.36432]
[1718006649087,2.3636,3665.3,3664.8,1.36432]
[1718006649223,0.02585518,3665.0,3664.8,1.36432]
[1718006649568,2.3636,3665.3,3664.8,1.36432]
[1718006649747,2.3394727,3665.3,3664.8,1.36432]
[1718006650080,0.02529103,3665.2,3664.8,1.36432]
[1718006650372,2.3394727,3665.3,3664.8,1.581152]
[1718006650730,0.02531707,3665.2,3664.8,1.581152]
[1718006651129,2.3394727,3665.3,3665.1,1.3642]
[1718006652229,2.3394727,3665.3,3664.7,1.36435]
[1718006652463,1.93,3665.2,3663.3,1.36487]
[1718006652764,0.1235634,3665.4,3664.5,1.36441]
[1718006652930,2.4963,3665.3,3664.5,1.36441]
[1718006653126,2.4963,3665.1,3664.5,1.36441]
[1718006653448,2.4963,3665.1,3664.8,1.36432]
[1718006658130,2.4963,3665.1,3664.4,1.36445]
[1718006658341,2.42048381,3665.0,3664.4,1.36445]
[1718006658545,2.3957,3664.8,3664.4,1.36445]
[1718006658990,0.02523963,3664.7,3664.4,1.36445]
[1718006659146,2.328,3664.6,3663.5,3.0]
[1718006659348,2.328,3664.6,3662.5,12.33]
[1718006659349,2.328,3664.6,3663.8,1.36469]
[1718006659549,2.328,3664.6,3663.4,1.36482]
[1718006659550,2.3952,3664.4,3663.4,1.36482]
[1718006659768,2.3952,3664.4,3663.0,1.36497]
[1718006660022,2.3952,3664.1,3663.0,1.36497]
[1718006660159,2.3159,3663.9,3663.0,1.36497]
[1718006662552,2.3159,3663.9,3662.7,2.7]
[1718006662756,1.93,3663.8,3662.7,2.7]
[1718006662962,2.3681,3663.7,3662.7,2.7]
[1718006663281,1.93,3663.4,3662.7,2.7]
[1718006663484,11.59615355,3663.3,3662.5,1.36516]
[1718006663682,10.58178033,3663.3,3662.5,1.36516]
[1718006663986,2.3596,3663.2,3662.5,1.36516]
[1718006664359,0.02435898,3663.1,3662.5,1.36516]
[1718006664596,2.3596,3662.5,3661.5,1.36553]
[1718006665906,2.3577,3662.3,3661.5,1.36553]
[1718006666130,1.93,3662.0,3660.7,1.36585]
[1718006666288,8.1893,3661.9,3660.7,1.36585]
[1718006666715,2.451,3661.8,3660.7,1.36585]
[1718006666918,8.1893,3661.7,3660.7,1.36585]
[1718006667088,8.1893,3661.7,3660.8,35.0]
[1718006667290,9.44633,3661.7,3660.8,35.0]
[1718006668702,2.3682,3661.6,3660.4,0.28050442]
[1718006668922,2.3682,3660.9,3659.6,1.36623]
[1718006669219,8.1893,3660.8,3659.7,35.0]
[1718006669426,8.1893,3660.8,3659.8,1.36617]
[1718006671636,8.1893,3660.8,3660.6,1.36589]
[1718006672236,8.1893,3660.8,3660.7,35.0]
[1718006674944,8.1893,3660.8,3660.7,36.93]
[1718006675105,8.1893,3660.8,3660.7,42.58030545]
[1718006676368,8.1893,3660.8,3660.7,43.13030545]
[1718006677951,2.3981,3662.3,3660.7,43.13030545]
[1718006677952,2.3981,3662.3,3661.1,1.36567]
[1718006678242,2.3981,3662.9,3662.0,1.93]
[1718006678449,2.3981,3662.9,3662.1,0.193]
[1718006678654,2.3981,3662.9,3662.2,35.0]
[1718006679148,0.006,3663.8,3662.2,35.0]
[1718006679443,1.3646,3664.1,3662.2,35.0]
[1718006679444,2.352,3663.7,3662.9,1.36502]
[1718006679948,2.352,3663.7,3663.2,1.3649]
[1718006680245,2.352,3663.7,3663.5,1.36478]
[1718006680547,2.2663,3664.4,3663.9,1.36464]
[1718006681027,2.2663,3664.4,3664.0,35.0]
[1718006681202,2.2663,3664.4,3663.9,1.36464]
[1718006683113,2.2663,3664.4,3663.5,35.0]
[1718006683114,2.49293,3664.4,3663.5,36.3648]
[1718006684323,2.2663,3664.4,3663.5,36.3648]
[1718006686522,2.2663,3664.4,3663.5,1.3648]
[1718006686750,1.37036,3664.8,3663.1,1.36495]
[1718006686751,2.3493,3664.2,3663.1,1.36495]
[1718006687418,1.36461,3664.1,3663.1,1.36495]
[1718006687649,0.371391,3664.0,3663.1,1.36495]
[1718006688111,1.36467,3663.9,3663.0,7.28]
[1718006688312,2.4233,3663.8,3663.0,7.28]
[1718006688517,1.36475,3663.7,3662.7,1.3651]
[1718006689125,1.36475,3663.7,3662.4,7.28]
[1718006689328,2.2984,3663.3,3662.4,7.28]
[1718006689533,2.2984,3663.3,3662.3,1.36524]
[1718006691922,1.36492,3663.2,3662.3,1.36524]
[1718006692147,1.36492,3663.2,3661.9,8.64539]
[1718006692920,1.36492,3663.2,3662.2,1.36528]
[1718006693120,1.731252,3663.2,3662.2,1.36528]
[1718006698552,1.36501,3663.0,3662.2,1.36528]
[1718006699557,8.1899,3663.1,3661.9,7.28]
[1718006700117,8.1899,3663.1,3662.0,35.0]
[1718006700342,9.55487,3663.1,3662.1,1.3653]
[1718006700558,9.55487,3663.1,3661.9,7.28]
[1718006700559,1.36504,3662.9,3661.9,7.28]
[1718006700855,8.1899,3662.8,3662.0,1.36536]
[1718006701458,8.1899,3662.8,3662.0,2.54825295]
[1718006701645,8.1899,3662.8,3661.9,8.64538]
[1718006701846,9.55498,3662.8,3661.9,8.64538]
[1718006703738,8.1899,3662.8,3662.2,1.36529]
[1718006703931,8.1899,3662.8,3661.9,7.28]
[1718006704133,8.1899,3662.8,3662.0,0.728]
[1718006704342,8.1899,3662.8,3662.4,1.36519]
[1718006707162,8.1899,3662.8,3662.7,1.36511]
[1718006708572,8.1899,3662.8,3662.2,1.36528]
[1718006709784,9.55497,3662.8,3661.9,8.6454]
[1718006709941,1.04727,3662.7,3661.9,8.6454]
[1718006710141,1.04727,3662.7,3661.9,1.3654]
[1718006710678,8.1899,3662.8,3662.2,1.36528]
[1718006712177,8.1639,3662.8,3662.2,1.36528]
[1718006717666,8.1639,3662.8,3662.5,1.36516]
[1718006718494,8.1639,3662.8,3662.2,1.36529]
[1718006718686,8.1639,3662.8,3661.9,1.3654]
[1718006718889,2.546314,3662.7,3661.9,1.3654]
[1718006719189,8.1639,3662.6,3661.9,1.3654]
[1718006720051,3.74872,3662.5,3661.6,35.0]
[1718006720263,1.36529,3662.3,3661.5,8.64552]
[1718006720471,8.538779,3662.2,3661.5,8.64552]
[1718006721167,8.488779,3662.2,3661.5,8.64552]
[1718006721895,1.36533,3662.1,3661.5,8.64552]
[1718006722202,8.1639,3662.0,3661.5,8.64552]
[1718006723073,8.1639,3662.0,3660.9,35.0]
[1718006723074,8.1639,3662.0,3661.1,1.36567]
[1718006723274,2.3336,3661.9,3661.1,1.36567]
[1718006723473,8.1639,3661.8,3661.1,1.36567]
[1718006724000,9.52935,3661.8,3661.1,1.36567]
[1718006724496,8.1639,3661.8,3661.1,1.36567]
[1718006724666,8.1639,3661.8,3661.4,1.36556]
[1718006725161,8.1639,3661.8,3661.4,1.502116]
[1718006725368,8.1639,3661.8,3661.6,1.36552]
[1718006726060,8.1139,3661.8,3661.6,1.36552]
[1718006726264,8.1139,3661.8,3661.7,35.0]
[1718006741818,8.1139,3661.8,3661.7,37.65030545]
[1718006746817,8.1139,3661.8,3661.7,40.65030545]
[1718006750448,8.1139,3661.8,3661.7,42.05436421]
[1718006750758,8.1139,3661.8,3661.7,41.20030545]
[1718006750975,8.1139,3661.8,3661.7,42.33905047]
[1718006752328,8.1139,3661.8,3661.7,41.95030545]
[1718006752574,8.1139,3661.8,3661.7,45.44275047]
[1718006752763,8.1139,3661.8,3661.7,44.30400545]
[1718006753725,8.1139,3661.8,3661.7,43.55400545]
[1718006753925,8.1139,3661.8,3661.7,44.27708806]
[1718006754167,8.1139,3661.8,3661.7,43.13330545]
[1718006757624,8.1139,3661.8,3661.7,43.99098211]
[1718006757851,8.1139,3661.8,3661.7,43.13330545]
[1718006758254,8.1139,3661.8,3661.7,43.99099217]
[1718006758451,8.1139,3661.8,3661.7,41.50799217]
[1718006758651,8.1139,3661.8,3661.7,38.0]
[1718006760751,8.1139,3661.8,3661.6,1.36552]
[1718006760952,8.20054994,3661.8,3661.6,1.36552]
[1718006761188,8.20054994,3661.8,3661.6,36.36552]
[1718006761394,8.1139,3661.8,3661.6,36.36552]
[1718006761594,0.08661548,3661.7,3661.6,36.36552]